Cogmind - Beta 15 @@@ ROGUE MODE // 2025.08.21 @ 14:51:15 Player: NQH Result: Core destroyed Performance ------------- Evolutions (1) 500 Regions Visited (2) 400 Robots Destroyed (35) 175 Value Destroyed (1021) 1021 Prototype IDs (0) 0 Alien Tech Used (0) 0 Bonus (34) 34 TOTAL SCORE: 2130 Bonus ------- High Alert Combat Kills 34 Cogmind --------- Core Integrity 0/400 Matter 42/300 Energy 48/100 System Corruption 0% Temperature Critical (852) Movement Core (650) Ox12 Location -9/Materials Parts ------- > --- POWER (2) -------- (None) > --- PROPULSION (2) --- (None) > --- UTILITY (2) ------ Large Storage Unit > --- WEAPON (3) ------- Heavy Particle Cannon Heavy Particle Cannon Heavy Particle Cannon > --- INVENTORY (15) --- Advanced Treads Advanced Treads High-capacity Matter Pod (130) Sensor Array Core Shielding High-powered Tractor Beam Heavy Particle Cannon Heavy Particle Cannon Heavy Particle Cannon Peak State ------------ > --- POWER ------------ Improved Ion Engine > --- PROPULSION ------- Advanced Treads Advanced Treads > --- UTILITY ---------- Large Storage Unit Signal Interpreter > --- WEAPON ----------- Heavy Particle Cannon Heavy Particle Cannon Heavy Particle Cannon > --- INVENTORY -------- Advanced Treads Advanced Treads High-capacity Matter Pod Sensor Array Core Shielding High-powered Tractor Beam Heavy Particle Cannon Heavy Particle Cannon Heavy Particle Cannon Heavy Particle Cannon Heavy Particle Cannon [Rating: 21] Favorites ----------- Power Ion Engine Engine Ion Engine Propulsion Light Treads Treads Light Treads Utility Signal Interpreter Device Sensor Array Storage Large Storage Unit Processor Signal Interpreter Weapon Light Assault Rifle Energy Gun Small Laser Energy Cannon Heavy Particle Cannon Ballistic Gun Light Assault Rifle Launcher Grenade Launcher Build | -11 -10 -9 ------- Run | Yrd Mat Mat Slots Evolved 2 | . . 2 Power 1 | . . 1 Propulsion . | . . . Utility . | . . . Weapon 1 | . . 1 Parts Attached 28 | 6 6 16 Power 3 | 1 1 1 Engine 3 | 1 1 1 Core . | . . . Reactor . | . . . Propulsion 8 | 2 . 6 Treads 8 | 2 . 6 Leg . | . . . Wheel . | . . . Hover . | . . . Flight . | . . . Utility 4 | . 3 1 Device 2 | . 2 . Storage 1 | . . 1 Processor 1 | . 1 . Hackware . | . . . Protection . | . . . Artifact . | . . . Weapon 13 | 3 2 8 Energy Gun 2 | 2 . . Energy Cannon 7 | . . 7 Ballistic Gun 3 | 1 2 . Ballistic Cannon . | . . . Launcher 1 | . . 1 Special Weapon . | . . . Impact Weapon . | . . . Slashing Weapon . | . . . Piercing Weapon . | . . . Special Melee Weapon . | . . . Unidentified Prototypes . | . . . Parts Lost 7 | . . 7 Power 2 | . . 2 Propulsion 2 | . . 2 Utility . | . . . Weapon 3 | . . 3 Highest Loss Streak 5 | . . 5 To Critical Strikes . | . . . Average Backups 5 | . 3 7 Power . | . . . Propulsion . | . . . Utility 2 | . 1 3 Weapon 2 | . 2 3 Tool/Special . | . . . Unused Backups 6 | . . 6 Power . | . . . Propulsion 2 | . . 2 Utility 3 | . . 3 Weapon 1 | . . 1 Tool/Special . | . . . Average Slot Usage (%) 90 | . 93 88 Engine 13 | . 14 13 Treads 25 | . 27 21 Device 7 | . 10 3 Storage 3 | . . 7 Processor 10 | . 10 9 Energy Gun 2 | . 4 . Energy Cannon 10 | . . 21 Ballistic Gun 13 | . 23 1 Launcher 4 | . . 9 Peak Build Rating 21 | 5 7 21 Average Rating 10 | 4 6 15 On Entrance 4 | . 5 7 Naked Turns . | . . . Heaviest Build 47 | 7 9 47 Greatest Support 44 | 40 40 44 Greatest Overweight (x) 12 | . . 12 Average Overweight (x) . | . . . Largest Inventory Capacity 15 | 5 5 15 Average Capacity 8 | 5 5 11 Most Carried 12 | 1 5 12 Average Carried 5 | . 4 7 Final Capacity 15 | 5 5 15 Final Carried 9 | 1 5 9 Class Distribution -------------------- 56% | Mutant 23% | Gunner 14% | Skirmisher 4% | Scavenger-Gunner Dominant Class ---------------- Mutant | -10/Materials Gunner | -9/Materials Resources | -11 -10 -9 ----------- Run | Yrd Mat Mat Matter Collected 727 | 239 253 235 Remotely . | . . . Salvage Created 1218 | . 202 1016 Parts 73 | . 8 65 Haulers Intercepted 2 | . . 2 Recyclers Shooed 1 | . . 1 Parts Field Recycled . | . . . Retrieved Matter . | . . . Parts Self-Destructed . | . . . Prevented . | . . . Kills | -11 -10 -9 ------- Run | Yrd Mat Mat Combat Hostiles Destroyed 28 | . 4 24 Guns 4 | . 4 . Cannons 18 | . . 18 AOE 6 | . . 6 Classes Destroyed 7 | . 1 6 Worker 1 | . . 1 Hauler 2 | . . 2 Recycler 2 | . . 2 Watcher 2 | . . 2 Swarmer 6 | . . 6 Grunt 17 | . 4 13 Sentry 5 | . . 5 Best Kill Streak 7 | . 3 7 Combat Bots Only 4 | . 3 4 Max Kills in Single Turn 3 | . 1 3 Gunslinging . | . . . Exploded 2 | . . 2 Melee . | . . . Uniques/NPCs Destroyed . | . . . Combat | -11 -10 -9 -------- Run | Yrd Mat Mat Hostile Shots Fired 148 | . 36 112 Missed 34 | . 9 25 Hits 114 | . 27 87 Projectile 114 | . 27 87 Damage Taken 1776 | . 361 1415 Core 516 | . 57 459 Absorbed by Shields . | . . . Core Remaining (%) 88 | 100 77 . Volleys Fired 80 | . 36 44 Largest 3 | . 2 3 Hottest 225 | . 40 225 Shots Fired 184 | . 72 112 Gun 72 | . 72 . Cannon 94 | . . 94 Launcher 18 | . . 18 Special . | . . . Kinetic 72 | . 72 . Thermal 94 | . . 94 Explosive 18 | . . 18 Electromagnetic . | . . . Robot Hit Streak 11 | . 11 5 Robot Miss Streak 8 | . 3 8 Penetration Max . | . . . Secondary Targets 1 | . 1 . Max Gunslinging Chain 1 | . 1 . Shots Hit Robots 94 | . 47 47 Core Hits 57 | . 14 43 Critical Kills . | . . . Critical Parts Destroyed . | . . . Critical Strikes . | . . . Melee Attacks . | . . . Impact . | . . . Slashing . | . . . Piercing . | . . . Sneak Attacks . | . . . Combat Hostiles . | . . . Follow-up Attacks . | . . . Damage Inflicted 2504 | . 392 2112 Guns 392 | . 392 . Cannons 1175 | . . 1175 Explosions 928 | . . 928 Melee . | . . . Ramming 9 | . . 9 Kinetic 392 | . 392 . Thermal 1194 | . . 1194 Explosive 909 | . . 909 Electromagnetic . | . . . Impact . | . . . Slashing . | . . . Piercing . | . . . Highest Corruption . | . . . Average Corruption . | . . . Corruption Purged . | . . . Corruption Blocked . | . . . Overload Shots . | . . . Overflow Damage 49 | . . 49 Projectiles 5 | . . 5 Explosions 44 | . . 44 Melee . | . . . Knockbacks . | . . . Impact . | . . . Kinetic . | . . . Secondary . | . . . Self-Inflicted Damage 25 | . . 25 Shots 2 | . . 2 Rammed 2 | . . 2 Targets Rammed 2 | . . 2 Kicked . | . . . Crushed . | . . . Highest Temperature 1136 | . 24 1136 Average Temperature 314 | . 10 347 Received Heat Transfer 732 | . 201 531 Effects 60 | . . 60 Shutdowns 11 | . . 11 Energy Bleed 5 | . . 5 Interference 10 | . . 10 Matter Decay 8 | . . 8 Short Circuit 8 | . . 8 Damage (minor) 7 | . . 7 Damage (major) 6 | . . 6 Damage (core) 5 | . . 5 Siege Activations . | . . . Martial Activations . | . . . Shielding Activations . | . . . Robots Disrupted . | . . . Combat Hostiles . | . . . Robots Corrupted . | . . . Combat Hostiles . | . . . Parts Fried . | . . . Impact Corruptions . | . . . Robots Melted . | . . . Combat Hostiles . | . . . Parts Melted . | . . . Heat Transferred 1789 | . . 1789 Parts Sabotaged . | . . . Parts Stolen . | . . . Parts Stripped . | . . . Power Chain Reactions . | . . . Alert | -11 -10 -9 ------- Run | Yrd Mat Mat Maximum Alert Level 2 | . . 2 Low Security (%) 68 | 100 100 29 Level 1 22 | . . 49 Level 2 9 | . . 21 Level 3 . | . . . Level 4 . | . . . Level 5 . | . . . High Security . | . . . Max Security . | . . . Peak Influence 458 | . 91 458 Initial . | . . . Average 127 | . 10 269 Influence Increases 999 | . 122 877 Destroy 0b10 Robot/C 560 | . 80 480 Destroy 0b10 Robot/NC 35 | . . 35 Destroy Leader 148 | . 20 128 Successful Hack 7 | . 7 . Disable Machine 105 | . . 105 Destroy Structure 129 | . . 129 Lose Combat Pursuer 15 | . 15 . Influence Decreases 676 | . 122 554 Time Decay 413 | . 79 334 Lost Part 70 | . . 70 Purge Threat 193 | . 43 150 Squads Dispatched 5 | . . 5 Investigation 2 | . . 2 Extermination . | . . . Reinforcement 3 | . . 3 Assault . | . . . Garrison . | . . . Intercept . | . . . Searches Triggered . | . . . Construction Impeded 1 | . . 1 Haulers Reinforced . | . . . Active Scanning Responses . | . . . Cargo Convoy Interrupts . | . . . Stealth | -11 -10 -9 --------- Run | Yrd Mat Mat Distress Signals 5 | . . 5 Communications Jammed . | . . . Distress Signals . | . . . Times Spotted 42 | . 10 32 Peak Tracking Total 6 | . 5 6 Tactical Retreats 1 | . 1 . Traps | -11 -10 -9 ------- Run | Yrd Mat Mat Traps Triggered 1 | . 1 . Indirectly . | . . . Trap Hack Attempts . | . . . Triggered . | . . . Disarmed . | . . . Reprogrammed . | . . . Reused . | . . . Traps Extracted . | . . . Installed . | . . . Triggered . | . . . Machines | -11 -10 -9 ---------- Run | Yrd Mat Mat Machines Disabled 7 | . . 7 Max in Single Turn 3 | . . 3 Machines Repaired . | . . . Machines Dismantled . | . . . Machines Sabotaged . | . . . Overloaded Fab Kills . | . . . Hacking | -11 -10 -9 --------- Run | Yrd Mat Mat Machines Accessed 4 | . 1 3 Terminals 4 | . 1 3 Fabricators . | . . . Repair Stations . | . . . Recycling Units . | . . . Scanalyzers . | . . . Garrison Access . | . . . Total Hacks 18 | . 6 12 Successful 7 | . 4 3 Failed 11 | . 2 9 Catastrophic 5 | . 1 4 Database Lockouts . | . . . Manual 12 | . 2 10 Terminals 18 | . 6 12 Fabricators . | . . . Repair Stations . | . . . Recycling Units . | . . . Scanalyzers . | . . . Garrison Access . | . . . Terminal Hacks 7 | . 4 3 Scanalyzer Index 1 | . 1 . Alert Level 3 | . 1 2 Unreport Threat 2 | . 1 1 Hauler Manifests 1 | . 1 . Fabricator Hacks . | . . . Repair Station Hacks . | . . . Recycling Unit Hacks . | . . . Scanalyzer . | . . . Garrison Access Hacks . | . . . Unauthorized Hacks . | . . . Terminals . | . . . Fabricators . | . . . Repair Stations . | . . . Recycling Units . | . . . Scanalyzers . | . . . Garrison Access . | . . . Data Cores Recovered . | . . . Used . | . . . Hacking Detections 4 | . 1 3 Full Trace Events 2 | . . 2 Feedback Events . | . . . Feedback Blocked . | . . . Robot Schematics Acquired . | . . . Robots Built . | . . . Authchips . | . . . Time . | . . . Total Robot Build Rating . | . . . Part Schematics Acquired . | . . . Parts Built . | . . . Authchips . | . . . Time . | . . . Total Part Build Rating . | . . . Parts Repaired . | . . . Time . | . . . Parts Recycled . | . . . Recycled Matter . | . . . Retrieved Matter . | . . . Retrieved Components . | . . . Parts Scanalyzed . | . . . Part Schematics Acquired . | . . . Parts Damaged . | . . . Bothacking | -11 -10 -9 ------------ Run | Yrd Mat Mat Used RIF Installer . | . . . Robots Hacked . | . . . Non-combat . | . . . Combat . | . . . Robot Hacks Applied . | . . . Relay Couplers Released . | . . . Fabnet Peak Effective % . | . . . Robots Rewired . | . . . Allies Hacked . | . . . Hacks Repelled . | . . . Allies | -11 -10 -9 -------- Run | Yrd Mat Mat Total Allies . | . . . Largest Group . | . . . Highest-Rated Group . | . . . Highest-Rated Ally . | . . . Total Orders . | . . . Ally Attacks . | . . . Total Damage . | . . . Kills . | . . . Allies Corrupted . | . . . Allies Melted . | . . . Intel | -11 -10 -9 ------- Run | Yrd Mat Mat Active Infowar (turns) 1161 | . 854 307 Sensors 1161 | . 854 307 Robot Analysis Total . | . . . Derelict Logs Recovered . | . . . Drone Launches . | . . . Drone Recoveries . | . . . Exploration | -11 -10 -9 ------------- Run | Yrd Mat Mat Turns Passed 2145 | 83 1095 967 Spaces Moved 910 | 50 434 426 Core 6 | 5 . 1 Treads 904 | 45 434 425 Legs . | . . . Wheels . | . . . Hover . | . . . Flight . | . . . Fastest Speed 50 | 50 160 145 Average Speed 170 | 149 160 183 Slowest Speed 650 | 160 160 650 Overloaded Moves . | . . . Propulsion Burnouts . | . . . Robots Hopped . | . . . Potential Cave-ins . | . . . Cave-ins Triggered . | . . . Exploration Rate (%) 26 | 5 36 39 Regions Visited 2 Branch Regions . Pre-discovered Areas . | . . . Known Exits Taken 1 | . 1 . Unknown Exits Taken 1 | 1 . . Scrap Searched . | . . . Spaces Dug . | . . . Terrain Destroyed 126 | . . 126 Melee . | . . . Projectile 30 | . . 30 AOE 96 | . . 96 Terrain Rammed . | . . . Walls Destroyed . | . . . Machines Disabled . | . . . Actions | -11 -10 -9 --------- Run | Yrd Mat Mat Total 1355 | 56 776 523 Wait 299 | . 288 11 Move 908 | 49 433 426 Hop . | . . . Pick Up 16 | 1 5 10 Fast Attach 15 | 5 6 4 Attach 6 | . . 6 Detach 4 | . 1 3 Swap 10 | 1 3 6 Drop 15 | . 4 11 Fire 80 | . 36 44 Melee . | . . . Ram . | . . . Kick . | . . . Crush 2 | . . 2 Escape Stasis . | . . . Rewire . | . . . Trap . | . . . Miscellaneous . | . . . Route ------- -11/Scrapyard -10/Materials -9/Materials (discovered 1 exit: *Min) History --------- Turn | Location | Event 10 | -11/Scrapyard | Discovered new exit (range 15) 84 | -11/Scrapyard | Entered Materials 313 | -10/Materials | Build established: Mutant 704 | -10/Materials | Discovered new exit (range 7) 720 | -10/Materials | Identified exit to Materials 1179 | -10/Materials | Entered another Materials area 1179 | -9/Materials | Evolved 2 slots: Power x1, Weapon x1 1448 | -9/Materials | Build established: Skirmisher 1893 | -9/Materials | Build established: Gunner 1959 | -9/Materials | Discovered new exit (range 12) 1973 | -9/Materials | Identified exit to Mines 2080 | -9/Materials | Core integrity fell below 50% 2135 | -9/Materials | Core integrity fell below 20% 2147 | -9/Materials | Core destroyed Last Messages --------------- 02130_ U-05 Engineer builds a Wall. 02133_ Overheating: Hvy. Particle Cannon damaged (-84). 02133_ Overheating: Lrg. Storage Unit damaged (-21). 02134_ Overheating: Matter decay (-13). 02135_ Overheating: Core damaged (-68). 02135_ U-05 Engineer builds a Door. 02136_ Hvy. Particle Cannon broken. 02136_ Overheating: Short circuit. 02137_ Overheating: Matter decay (-9). 02138_ U-05 Engineer builds a Door. 02140_ U-05 Engineer lays Concrete. 02141_ Overheating: Matter decay (-6). 02141_ Broken Adv. Treads destroyed. 02141_ U-05 Engineer lays Concrete. 02142_ Overheating: System interference. 02142_ Hvy. Particle Cannon temporarily disabled. 02142_ U-05 Engineer builds a Wall. 02145_ K-01 Serf collects debris. 02147_ Overheating: Core damaged (-64). Map ----- +----------------------------------------------------+ | ????????????????????????????????????????????????? | | ????????????????????????????????????????????????? | | ????????????????????????????????????????????????? | | ????????????????????????????????????????????????? | | ????????????????????????????????????????????????? | | ????????????????????????????????????????????????? | | ????????????????????????????????????????????????? | | ????????????#####???????????????????????????????? | | ???????????##"""##??????????????????????????????? | | ??????????##"!!!"##?????????????????????????????? | | ??????????#"" ""#?????????????????????????????? | | ??????????# #?????????????????????????????? | | ??????????# > #?????????????????????????????? | | ??????????# #?????????????????????????????? | | ??????????# ########?????###########??????? | | ??????????## ##[ #?????# #??????? | | ???????????## ### #???### =! ""#??????? | | ??########### #?# "" #???# = T"#??????? | | ??# ## #?# "T #???# ""#??????? | | ??# """ ""## #?# "" #???## #??????? | | ??# """ T"## ### #???### #??????? | | ??# """ ""# # ## ######### #??????? | | ??# # # ## #??????? | | ??# """ + # "T" #######+####??????? | | ??# """ ! # %# """ #????# #????????? | | ??# """ # = %!# @ ###### #???????? | | ??# / # =[% = ##g#;#;;;;;;## #?????? | | ??###+###### % k=u !!%!! r #????? | | ????# % o ! ! " ? | | ????# % = % ##### | | ?####### "" "" " %% # ## | | # # " "" """"""" * %%[ | | # # """" "" % ^ | | # + % # | | # " " # ### # | | # "R" # ########## # # #"### | | # """ ## ######### #### #! #% = #?? | | ######### #???????# #??###! +% #?? | | ????????# #???????; #????# " #?? | | ????????#+######### a #????#! # " #?? | | ????????# = [ # !! u#????#! # #?? | | ????????# # !! #????##! # #?? | | ????????# """"""" # !! #?????#### " #####?? | | ????????# """"""" + #????????# ####?##??? | | ######### """"""" # #???????## ##???????? | | # ## """"""" ### #######?## ##???????? | | # ## """"""" #?# # ### ##?####### | | # ## #?# ^^ ^# " # ##? | | # [ ##+#########?# # " # | | # ## ########### # % # | +----------------------------------------------------+ Best States ------------- Heat Dissipation 28 Energy Generation 17 Energy Capacity 415 Matter Stores 300 Matter Capacity 300 Sight Range 16 Robot Scan Range 14 Terrain Scan Density 10 Evasion (%) 40 Recoil Reduction 2 Item Schematics ----------------- None Robot Schematics ------------------ None Fabricated ------------ Nothing Repaired ---------- Nothing Alien Tech Used ----------------- None Achievements -------------- None Challenges ------------ None Game ------ Seed RecyclingSuspensionLog Manual? 0 Play Time 00:17:52 Cumulative 14.0 hours Start 2025.08.21 @ 14:36:58 End 2025.08.21 @ 14:51:15 Sessions 1 Manual Loads 0 Difficulty Rogue Special Mode None Game No. 39 Rogue 39 Adventurer 0 Explorer 0 Win Type - Total 0 Types 0/0/0/0/0/0/0/0/0/0 Lore% 9 Gallery% 21 Achievement% 19 Wizard Run 0 Options --------- Layout 1 ASCII 0 Keyboard 1 Movement Vi Keybinds 0 Fullscreen 1 Font 16/SmallcapsGlow Map View 55x38 Zoom Use 0% Tactical HUD 1 Map Filters NONE Filters NONE Steam 1 RUN: 4ab37e16-2b10-4d60-bfb5-deeee6e93c3b